[Event "*** SCC Grand Prix: Titled Tuesday Blitz"]
[Site "Chess.com"]
[Date "2020.06.02"]
[Round "2"]
[White "ahappypawn"]
[Black "m-garcett"]
[Result "1-0"]
[WhiteElo "2370"]
[BlackElo "2049"]
[TimeControl "180+1"]
[EndTime "10:17:36 PDT"]
[Termination "ahappypawn won on time"]

1. d4 {[%clk 0:03:00.9]} 1... Nf6 {[%clk 0:02:59.5]} 2. c4 {[%clk 0:02:57]} 2...
g6 {[%clk 0:03:00]} 3. Nc3 {[%clk 0:02:57.3]} 3... Bg7 {[%clk 0:03:00.2]} 4. g3
{[%clk 0:02:55.8]} 4... d6 {[%clk 0:03:00.5]} 5. Bg2 {[%clk 0:02:55.8]} 5... O-O
{[%clk 0:03:01]} 6. Nf3 {[%clk 0:02:56.4]} 6... Nbd7 {[%clk 0:03:00.7]} 7. O-O
{[%clk 0:02:56.9]} 7... e5 {[%clk 0:03:00.6]} 8. e4 {[%clk 0:02:57.1]} 8... c6
{[%clk 0:03:00.4]} 9. Re1 {[%clk 0:02:57.5]} 9... Qb6 {[%clk 0:02:55.9]} 10.
dxe5 {[%clk 0:02:47.7]} 10... dxe5 {[%clk 0:02:53.6]} 11. Qc2 {[%clk 0:02:42.6]}
11... Re8 {[%clk 0:02:46.9]} 12. h3 {[%clk 0:02:33.5]} 12... Bf8 {[%clk
0:02:40.6]} 13. Be3 {[%clk 0:02:31.7]} 13... Bc5 {[%clk 0:02:20.4]} 14. Na4
{[%clk 0:02:29.5]} 14... Qa5 {[%clk 0:02:20.1]} 15. Nxc5 {[%clk 0:02:21.9]}
15... Nxc5 {[%clk 0:02:18.8]} 16. Nd2 {[%clk 0:02:06.4]} 16... Be6 {[%clk
0:02:04.3]} 17. a3 {[%clk 0:02:01]} 17... Na6 {[%clk 0:01:12]} 18. b4 {[%clk
0:01:55.9]} 18... Qc7 {[%clk 0:01:08.2]} 19. Nb3 {[%clk 0:01:55.8]} 19... Rad8
{[%clk 0:01:02.9]} 20. Rad1 {[%clk 0:01:52.5]} 20... b5 {[%clk 0:00:55.6]} 21.
cxb5 {[%clk 0:01:44.7]} 21... cxb5 {[%clk 0:00:56.5]} 22. Qxc7 {[%clk
0:01:36.7]} 22... Nxc7 {[%clk 0:00:57.4]} 23. Nc5 {[%clk 0:01:35.1]} 23... Bc4
{[%clk 0:00:49.4]} 24. Nb7 {[%clk 0:01:27.2]} 24... Rd3 {[%clk 0:00:42.1]} 25.
Rxd3 {[%clk 0:00:53]} 25... Bxd3 {[%clk 0:00:43]} 26. Bxa7 {[%clk 0:00:53.5]}
26... Ne6 {[%clk 0:00:32.3]} 27. Nc5 {[%clk 0:00:36]} 27... Bc4 {[%clk
0:00:20.6]} 28. Nxe6 {[%clk 0:00:27.7]} 28... Rxe6 {[%clk 0:00:21.5]} 29. Rd1
{[%clk 0:00:20.1]} 29... Ra6 {[%clk 0:00:19.2]} 30. Bc5 {[%clk 0:00:16]} 30...
Kg7 {[%clk 0:00:02.8]} 31. Rd8 {[%clk 0:00:14.2]} 31... h5 {[%clk 0:00:02.6]}
32. Bf8+ {[%clk 0:00:08.1]} 32... Kh7 {[%clk 0:00:02.8]} 33. Be7 {[%clk
0:00:08.5]} 1-0

[Event "*** SCC Grand Prix: Titled Tuesday Blitz"]
[Site "Chess.com"]
[Date "2020.06.02"]
[Round "2"]
[White "Jospem"]
[Black "Fighter008"]
[Result "1-0"]
[WhiteElo "2892"]
[BlackElo "2560"]
[TimeControl "180+1"]
[EndTime "10:17:37 PDT"]
[Termination "Jospem won by resignation"]

1. e4 {[%clk 0:03:00.9]} 1... c5 {[%clk 0:02:59.2]} 2. Nf3 {[%clk 0:03:00.8]}
2... e6 {[%clk 0:02:57.6]} 3. d4 {[%clk 0:03:00.6]} 3... cxd4 {[%clk 0:02:58.5]}
4. Nxd4 {[%clk 0:03:01.5]} 4... a6 {[%clk 0:02:58.8]} 5. Bd3 {[%clk 0:03:00.1]}
5... g6 {[%clk 0:02:58.7]} 6. O-O {[%clk 0:02:59.5]} 6... Bg7 {[%clk 0:02:58.3]}
7. c3 {[%clk 0:02:58.2]} 7... d6 {[%clk 0:02:45.4]} 8. f4 {[%clk 0:02:56.7]}
8... Nf6 {[%clk 0:02:44.8]} 9. Be3 {[%clk 0:02:56.3]} 9... O-O {[%clk
0:02:44.3]} 10. h3 {[%clk 0:02:51.8]} 10... e5 {[%clk 0:02:41.7]} 11. Ne2 {[%clk
0:02:36.3]} 11... Nc6 {[%clk 0:02:37.4]} 12. Nd2 {[%clk 0:02:35.2]} 12... d5
{[%clk 0:02:29.3]} 13. Qc2 {[%clk 0:02:26.4]} 13... Re8 {[%clk 0:02:24.5]} 14.
Rad1 {[%clk 0:02:23.7]} 14... exf4 {[%clk 0:02:16]} 15. Nxf4 {[%clk 0:02:22.5]}
15... Qc7 {[%clk 0:01:48.7]} 16. Rde1 {[%clk 0:02:06.1]} 16... dxe4 {[%clk
0:01:39.5]} 17. Nxe4 {[%clk 0:02:03.8]} 17... Nxe4 {[%clk 0:01:38.2]} 18. Bxe4
{[%clk 0:02:04.7]} 18... Be6 {[%clk 0:01:30.7]} 19. Nxe6 {[%clk 0:01:55.5]}
19... Rxe6 {[%clk 0:01:31.6]} 20. Bd5 {[%clk 0:01:55.7]} 20... Re7 {[%clk
0:01:25.3]} 21. Qf2 {[%clk 0:01:46.3]} 21... Ne5 {[%clk 0:01:14.2]} 22. Rd1
{[%clk 0:01:30.3]} 22... Rae8 {[%clk 0:01:06.5]} 23. Bb6 {[%clk 0:01:22.1]}
23... Qb8 {[%clk 0:01:05.1]} 24. Bd4 {[%clk 0:01:17.1]} 24... Kh8 {[%clk
0:00:58.1]} 25. a4 {[%clk 0:01:10.9]} 25... f5 {[%clk 0:00:46.5]} 26. a5 {[%clk
0:01:05.2]} 26... Nd7 {[%clk 0:00:43.4]} 27. Bxg7+ {[%clk 0:00:58.7]} 27... Kxg7
{[%clk 0:00:44.3]} 28. Qd4+ {[%clk 0:00:58.9]} 28... Nf6 {[%clk 0:00:42.9]} 29.
Bf3 {[%clk 0:00:58.3]} 29... Re5 {[%clk 0:00:30.5]} 30. b4 {[%clk 0:00:50.5]}
30... R8e7 {[%clk 0:00:30.2]} 31. c4 {[%clk 0:00:46.9]} 31... Qc7 {[%clk
0:00:29.8]} 32. c5 {[%clk 0:00:45.9]} 32... Ne4 {[%clk 0:00:29.7]} 33. Rfe1
{[%clk 0:00:38.4]} 33... Kh6 {[%clk 0:00:21.2]} 34. Re3 {[%clk 0:00:32]} 34...
Ng5 {[%clk 0:00:20.8]} 35. Rxe5 {[%clk 0:00:24.1]} 35... Rxe5 {[%clk 0:00:16.2]}
36. Qh4+ {[%clk 0:00:23.9]} 36... Kg7 {[%clk 0:00:12.9]} 37. Qxg5 {[%clk
0:00:24.1]} 37... Re7 {[%clk 0:00:12.8]} 38. Qd2 {[%clk 0:00:23.5]} 38... Qe5
{[%clk 0:00:12.6]} 39. Qd4 {[%clk 0:00:23.5]} 1-0

[Event "*** SCC Grand Prix: Titled Tuesday Blitz"]
[Site "Chess.com"]
[Date "2020.06.02"]
[Round "2"]
[White "themind1hunter"]
[Black "artooon"]
[Result "0-1"]
[WhiteElo "2498"]
[BlackElo "2733"]
[TimeControl "180+1"]
[EndTime "10:17:37 PDT"]
[Termination "artooon won on time"]

1. e4 {[%clk 0:03:00.9]} 1... e5 {[%clk 0:02:59.6]} 2. Nf3 {[%clk 0:03:00.3]}
2... Nc6 {[%clk 0:03:00.2]} 3. Bb5 {[%clk 0:03:00.6]} 3... Nf6 {[%clk
0:03:00.4]} 4. d3 {[%clk 0:02:59.7]} 4... Bc5 {[%clk 0:03:00.2]} 5. Bxc6 {[%clk
0:02:59.7]} 5... dxc6 {[%clk 0:03:01]} 6. Nbd2 {[%clk 0:02:59.5]} 6... Qe7
{[%clk 0:03:00.8]} 7. Qe2 {[%clk 0:02:55]} 7... Nd7 {[%clk 0:03:00]} 8. Nc4
{[%clk 0:02:54.8]} 8... f6 {[%clk 0:02:59.7]} 9. Be3 {[%clk 0:02:52.8]} 9... b6
{[%clk 0:02:44.5]} 10. O-O-O {[%clk 0:02:42.9]} 10... Ba6 {[%clk 0:02:34.3]} 11.
Bxc5 {[%clk 0:02:33.7]} 11... Nxc5 {[%clk 0:02:31.9]} 12. Ne3 {[%clk 0:02:34]}
12... Ne6 {[%clk 0:02:29.2]} 13. Qd2 {[%clk 0:02:28.3]} 13... O-O-O {[%clk
0:02:28.2]} 14. Qc3 {[%clk 0:02:00.6]} 14... c5 {[%clk 0:02:27.4]} 15. Nd5
{[%clk 0:01:46]} 15... Qf7 {[%clk 0:02:27.4]} 16. Qa3 {[%clk 0:01:41.7]} 16...
Kb7 {[%clk 0:02:08.4]} 17. Kb1 {[%clk 0:01:31.9]} 17... c6 {[%clk 0:01:48.8]}
18. Ne3 {[%clk 0:01:20]} 18... Nd4 {[%clk 0:01:48.6]} 19. Nxd4 {[%clk
0:01:17.6]} 19... cxd4 {[%clk 0:01:40.1]} 20. Nf5 {[%clk 0:01:17.9]} 20... c5
{[%clk 0:01:36]} 21. f4 {[%clk 0:01:15.7]} 21... exf4 {[%clk 0:01:32.8]} 22.
Rhf1 {[%clk 0:01:14.7]} 22... g6 {[%clk 0:01:31.6]} 23. Nh6 {[%clk 0:01:05.6]}
23... Qc7 {[%clk 0:01:30.7]} 24. Qb3 {[%clk 0:01:02.3]} 24... c4 {[%clk
0:01:24.9]} 25. Qb4 {[%clk 0:01:02.3]} 25... Rc8 {[%clk 0:01:22.9]} 26. dxc4
{[%clk 0:00:53]} 26... Bxc4 {[%clk 0:01:23.7]} 27. Rf2 {[%clk 0:00:53.6]} 27...
Rhd8 {[%clk 0:01:20.2]} 28. b3 {[%clk 0:00:48]} 28... Be6 {[%clk 0:01:15.6]} 29.
Rxd4 {[%clk 0:00:47.1]} 29... Rxd4 {[%clk 0:01:11.3]} 30. Qxd4 {[%clk 0:00:48]}
30... Rd8 {[%clk 0:01:11.9]} 31. Qxf6 {[%clk 0:00:47.2]} 31... Rd1+ {[%clk
0:00:46.7]} 32. Kb2 {[%clk 0:00:45.2]} 32... Qc5 {[%clk 0:00:42.2]} 33. Re2
{[%clk 0:00:11]} 33... Bc4 {[%clk 0:00:35]} 34. Qg7+ {[%clk 0:00:04.6]} 34...
Ka6 {[%clk 0:00:34.7]} 0-1

[Event "*** SCC Grand Prix: Titled Tuesday Blitz"]
[Site "Chess.com"]
[Date "2020.06.02"]
[Round "2"]
[White "fabianvivasz"]
[Black "aNaartjieZA"]
[Result "0-1"]
[WhiteElo "2292"]
[BlackElo "2557"]
[TimeControl "180+1"]
[EndTime "10:17:37 PDT"]
[Termination "aNaartjieZA won on time"]

1. e4 {[%clk 0:02:59]} 1... e6 {[%clk 0:02:59.8]} 2. d4 {[%clk 0:02:56.8]} 2...
d5 {[%clk 0:02:59.9]} 3. Nd2 {[%clk 0:02:56.9]} 3... Nf6 {[%clk 0:02:59.6]} 4.
e5 {[%clk 0:02:56.9]} 4... Nfd7 {[%clk 0:02:59.8]} 5. Ngf3 {[%clk 0:02:56.8]}
5... c5 {[%clk 0:02:59.9]} 6. c3 {[%clk 0:02:57.5]} 6... Nc6 {[%clk 0:03:00]} 7.
Bd3 {[%clk 0:02:58.1]} 7... a6 {[%clk 0:03:00.2]} 8. O-O {[%clk 0:02:57.1]} 8...
g5 {[%clk 0:03:00.3]} 9. dxc5 {[%clk 0:02:55.2]} 9... g4 {[%clk 0:02:59.8]} 10.
Nd4 {[%clk 0:02:54.1]} 10... Ndxe5 {[%clk 0:02:59.8]} 11. Bc2 {[%clk 0:02:01.4]}
11... Bxc5 {[%clk 0:02:50.8]} 12. N2b3 {[%clk 0:01:42.9]} 12... Bd6 {[%clk
0:02:44.2]} 13. f4 {[%clk 0:01:36.8]} 13... gxf3 {[%clk 0:02:41.1]} 14. Nxf3
{[%clk 0:01:36.8]} 14... Bd7 {[%clk 0:02:31.7]} 15. Nxe5 {[%clk 0:01:09.4]}
15... Nxe5 {[%clk 0:02:28]} 16. Qh5 {[%clk 0:01:05.2]} 16... Qb6+ {[%clk
0:02:17.4]} 17. Kh1 {[%clk 0:01:01.9]} 17... O-O-O {[%clk 0:02:16.8]} 18. Bf4
{[%clk 0:00:58.4]} 18... f5 {[%clk 0:02:14.5]} 19. Rae1 {[%clk 0:00:50.4]} 19...
Nc4 {[%clk 0:02:12.1]} 20. Bxd6 {[%clk 0:00:35.4]} 20... Qxd6 {[%clk 0:02:13]}
21. Nd4 {[%clk 0:00:30]} 21... Rhg8 {[%clk 0:02:06.3]} 22. Nxe6 {[%clk
0:00:23.7]} 22... Rde8 {[%clk 0:01:45.2]} 23. Nd4 {[%clk 0:00:16.8]} 23... Ne3
{[%clk 0:01:43.8]} 24. Rxe3 {[%clk 0:00:12.9]} 24... Rxe3 {[%clk 0:01:42.2]} 25.
Bxf5 {[%clk 0:00:13]} 25... Re7 {[%clk 0:01:35.5]} 26. Bxd7+ {[%clk 0:00:10.7]}
26... Rxd7 {[%clk 0:01:35.5]} 27. g3 {[%clk 0:00:10.1]} 27... Qe7 {[%clk
0:01:33.9]} 28. Qf3 {[%clk 0:00:07.8]} 28... Kb8 {[%clk 0:01:32]} 29. Qf5 {[%clk
0:00:05.9]} 29... Ka8 {[%clk 0:01:30.1]} 30. Kg2 {[%clk 0:00:04.7]} 30... Rdd8
{[%clk 0:01:28.3]} 31. Rf3 {[%clk 0:00:04.2]} 31... Rgf8 {[%clk 0:01:27.8]} 32.
Qh5 {[%clk 0:00:04.2]} 32... Rxf3 {[%clk 0:01:26]} 33. Qxf3 {[%clk 0:00:05.1]}
33... Qd6 {[%clk 0:01:23.2]} 34. Qe3 {[%clk 0:00:04.6]} 34... Rf8 {[%clk
0:01:21.8]} 35. a4 {[%clk 0:00:04.5]} 35... Qf6 {[%clk 0:01:21.4]} 36. Qe2
{[%clk 0:00:04.7]} 36... Qf7 {[%clk 0:01:20.2]} 37. a5 {[%clk 0:00:03.8]} 37...
Re8 {[%clk 0:01:20]} 38. Qd3 {[%clk 0:00:03.3]} 38... Qc7 {[%clk 0:01:17]} 39.
Nf3 {[%clk 0:00:03.1]} 39... Qxa5 {[%clk 0:01:13.4]} 40. Qxh7 {[%clk 0:00:02.3]}
40... Re2+ {[%clk 0:01:11.5]} 41. Kh3 {[%clk 0:00:02.6]} 41... Qb5 {[%clk
0:01:10]} 42. Qh8+ {[%clk 0:00:02.3]} 42... Ka7 {[%clk 0:01:08.7]} 43. Nd4
{[%clk 0:00:02.3]} 43... Qd7+ {[%clk 0:01:07.9]} 44. Kh4 {[%clk 0:00:01.3]}
44... Rxh2+ {[%clk 0:01:07.7]} 0-1

[Event "*** SCC Grand Prix: Titled Tuesday Blitz"]
[Site "Chess.com"]
[Date "2020.06.02"]
[Round "2"]
[White "AverageRecord"]
[Black "Titus369"]
[Result "1-0"]
[WhiteElo "3015"]
[BlackElo "2589"]
[TimeControl "180+1"]
[EndTime "10:17:38 PDT"]
[Termination "AverageRecord won by resignation"]

1. d4 {[%clk 0:02:48.2]} 1... d5 {[%clk 0:02:56.7]} 2. Nf3 {[%clk 0:02:48.6]}
2... Nf6 {[%clk 0:02:56.6]} 3. Bf4 {[%clk 0:02:46]} 3... e6 {[%clk 0:02:56.3]}
4. e3 {[%clk 0:02:46]} 4... Bd6 {[%clk 0:02:56.5]} 5. Bxd6 {[%clk 0:02:46.6]}
5... cxd6 {[%clk 0:02:56.2]} 6. c4 {[%clk 0:02:47.5]} 6... dxc4 {[%clk
0:02:54.8]} 7. Bxc4 {[%clk 0:02:45.3]} 7... a6 {[%clk 0:02:54.9]} 8. Nc3 {[%clk
0:02:44.3]} 8... O-O {[%clk 0:02:53.2]} 9. Bd3 {[%clk 0:02:43.9]} 9... b5 {[%clk
0:02:49.6]} 10. O-O {[%clk 0:02:44.2]} 10... Bb7 {[%clk 0:02:49.5]} 11. Qe2
{[%clk 0:02:44.1]} 11... Nbd7 {[%clk 0:02:49.2]} 12. Rad1 {[%clk 0:02:44]} 12...
Nb6 {[%clk 0:02:47.6]} 13. e4 {[%clk 0:02:40.9]} 13... Qc7 {[%clk 0:02:38.3]}
14. Rfe1 {[%clk 0:02:39.8]} 14... Rac8 {[%clk 0:02:32.8]} 15. h3 {[%clk
0:02:36.7]} 15... Nc4 {[%clk 0:02:30.7]} 16. Rc1 {[%clk 0:02:33.8]} 16... Qb6
{[%clk 0:02:22.6]} 17. b3 {[%clk 0:02:26.9]} 17... Na5 {[%clk 0:02:20.7]} 18.
Qd2 {[%clk 0:02:17.5]} 18... Nc6 {[%clk 0:02:15.3]} 19. Ne2 {[%clk 0:02:17.6]}
19... Rfd8 {[%clk 0:02:09]} 20. Rc2 {[%clk 0:02:14.3]} 20... Ne7 {[%clk
0:02:08.2]} 21. Ng3 {[%clk 0:02:12.5]} 21... Rxc2 {[%clk 0:02:00.2]} 22. Bxc2
{[%clk 0:02:13.4]} 22... Rc8 {[%clk 0:01:57.2]} 23. Bd3 {[%clk 0:02:12.4]} 23...
Qc7 {[%clk 0:01:55.2]} 24. a4 {[%clk 0:02:06.8]} 24... bxa4 {[%clk 0:01:41.9]}
25. bxa4 {[%clk 0:02:07.7]} 25... Qc3 {[%clk 0:01:42.2]} 26. Rb1 {[%clk
0:02:05.8]} 26... Qxd2 {[%clk 0:01:33.5]} 27. Nxd2 {[%clk 0:02:06.7]} 27... Bc6
{[%clk 0:01:31.3]} 28. Bxa6 {[%clk 0:02:04.4]} 28... Ra8 {[%clk 0:01:27.8]} 29.
Bb5 {[%clk 0:02:03.2]} 29... Bxb5 {[%clk 0:01:24.7]} 30. axb5 {[%clk 0:02:04.1]}
30... Rb8 {[%clk 0:01:23.2]} 31. Ne2 {[%clk 0:01:56]} 31... Kf8 {[%clk
0:00:57.8]} 32. f3 {[%clk 0:01:55.7]} 32... Ke8 {[%clk 0:00:57.9]} 33. Kf2
{[%clk 0:01:55.3]} 33... Kd7 {[%clk 0:00:57.2]} 34. Ke3 {[%clk 0:01:55.6]} 34...
Ne8 {[%clk 0:00:54.1]} 35. Nc3 {[%clk 0:01:52.7]} 35... Nc7 {[%clk 0:00:54.1]}
36. Kd3 {[%clk 0:01:49.9]} 36... Nc8 {[%clk 0:00:53.6]} 37. Nc4 {[%clk
0:01:47.9]} 37... f6 {[%clk 0:00:50.5]} 38. d5 {[%clk 0:01:35.9]} 38... Ne7
{[%clk 0:00:24.4]} 39. dxe6+ {[%clk 0:01:34.6]} 39... Nxe6 {[%clk 0:00:24.2]}
40. b6 {[%clk 0:01:32.8]} 40... Nf4+ {[%clk 0:00:20.5]} 41. Kd2 {[%clk
0:01:30.2]} 41... Nxg2 {[%clk 0:00:18.1]} 42. Rg1 {[%clk 0:01:24.2]} 42... Nh4
{[%clk 0:00:17.7]} 43. Rxg7 {[%clk 0:01:24.3]} 43... Nxf3+ {[%clk 0:00:17.3]}
44. Ke3 {[%clk 0:01:24.4]} 44... Nh4 {[%clk 0:00:06.2]} 45. Nd5 {[%clk
0:01:22.6]} 45... Ng6 {[%clk 0:00:06.7]} 46. Rxh7 {[%clk 0:01:16.7]} 46... Ke6
{[%clk 0:00:04]} 47. Nc7+ {[%clk 0:01:16.2]} 47... Kd7 {[%clk 0:00:04]} 48. h4
{[%clk 0:01:15.2]} 48... Rh8 {[%clk 0:00:01.2]} 49. Rxh8 {[%clk 0:01:12]} 49...
Nxh8 {[%clk 0:00:02.1]} 50. Nd5 {[%clk 0:01:08.1]} 50... Nxd5+ {[%clk
0:00:01.5]} 51. exd5 {[%clk 0:01:09]} 51... Nf7 {[%clk 0:00:01.7]} 52. Kf4
{[%clk 0:01:07.6]} 52... Ne5 {[%clk 0:00:01.7]} 53. Nxe5+ {[%clk 0:01:07]} 53...
dxe5+ {[%clk 0:00:02.6]} 54. Ke4 {[%clk 0:01:06]} 54... Kd6 {[%clk 0:00:03]} 55.
h5 {[%clk 0:01:05]} 55... f5+ {[%clk 0:00:02.9]} 56. Kxf5 {[%clk 0:01:05.9]}
56... Kxd5 {[%clk 0:00:03.8]} 57. b7 {[%clk 0:01:06]} 57... e4 {[%clk
0:00:04.7]} 58. b8=Q {[%clk 0:01:06.5]} 58... e3 {[%clk 0:00:05.6]} 59. Qe5+
{[%clk 0:01:06.9]} 59... Kc4 {[%clk 0:00:05.5]} 60. Qxe3 {[%clk 0:01:07.8]} 1-0

[Event "*** SCC Grand Prix: Titled Tuesday Blitz"]
[Site "Chess.com"]
[Date "2020.06.02"]
[Round "2"]
[White "crossingthestreet"]
[Black "DLR7"]
[Result "0-1"]
[WhiteElo "2373"]
[BlackElo "2659"]
[TimeControl "180+1"]
[EndTime "10:17:39 PDT"]
[Termination "DLR7 won by checkmate"]

1. c4 {[%clk 0:03:00.9]} 1... e5 {[%clk 0:02:58.6]} 2. Nc3 {[%clk 0:03:00.7]}
2... Nc6 {[%clk 0:02:57.5]} 3. e3 {[%clk 0:02:59.7]} 3... Nf6 {[%clk 0:02:56.9]}
4. Nf3 {[%clk 0:02:55.1]} 4... d6 {[%clk 0:02:41.6]} 5. d4 {[%clk 0:02:41.2]}
5... exd4 {[%clk 0:02:38.7]} 6. exd4 {[%clk 0:02:42.1]} 6... d5 {[%clk
0:02:34.4]} 7. cxd5 {[%clk 0:02:28.4]} 7... Nxd5 {[%clk 0:02:32.2]} 8. Bc4
{[%clk 0:02:28.7]} 8... Be6 {[%clk 0:02:28.1]} 9. Qe2 {[%clk 0:02:28.5]} 9...
Be7 {[%clk 0:02:20.8]} 10. O-O {[%clk 0:01:56.3]} 10... O-O {[%clk 0:02:17.1]}
11. Rd1 {[%clk 0:01:55.3]} 11... Re8 {[%clk 0:01:55.7]} 12. Ne5 {[%clk
0:01:48.9]} 12... Nxe5 {[%clk 0:01:41.5]} 13. Bxd5 {[%clk 0:01:38.3]} 13... Bxd5
{[%clk 0:01:34.6]} 14. dxe5 {[%clk 0:01:38]} 14... c6 {[%clk 0:01:32.9]} 15. Be3
{[%clk 0:01:32.9]} 15... Qd7 {[%clk 0:01:28.6]} 16. Nxd5 {[%clk 0:01:32.3]}
16... cxd5 {[%clk 0:01:28.6]} 17. Bd4 {[%clk 0:01:30.4]} 17... Qe6 {[%clk
0:01:25.7]} 18. Rac1 {[%clk 0:01:21.7]} 18... b6 {[%clk 0:01:22.4]} 19. Qb5
{[%clk 0:01:16.9]} 19... Rac8 {[%clk 0:01:17.4]} 20. a4 {[%clk 0:01:15.2]} 20...
Rxc1 {[%clk 0:01:01.3]} 21. Rxc1 {[%clk 0:01:15.2]} 21... Rc8 {[%clk 0:00:55.5]}
22. Rxc8+ {[%clk 0:01:00.5]} 22... Qxc8 {[%clk 0:00:55.1]} 23. h3 {[%clk
0:01:00.7]} 23... Qc1+ {[%clk 0:00:48.5]} 24. Qf1 {[%clk 0:01:00.6]} 24... Qf4
{[%clk 0:00:49.4]} 25. Qd3 {[%clk 0:00:54.2]} 25... h6 {[%clk 0:00:42.4]} 26. g3
{[%clk 0:00:54.2]} 26... Qc1+ {[%clk 0:00:33.1]} 27. Kg2 {[%clk 0:00:54.3]}
27... Qc6 {[%clk 0:00:33.4]} 28. a5 {[%clk 0:00:49.6]} 28... Bc5 {[%clk
0:00:31.4]} 29. axb6 {[%clk 0:00:48.8]} 29... axb6 {[%clk 0:00:29.6]} 30. Qc3
{[%clk 0:00:39.1]} 30... Qb5 {[%clk 0:00:20.4]} 31. h4 {[%clk 0:00:29.3]} 31...
h5 {[%clk 0:00:16.2]} 32. Kf3 {[%clk 0:00:26.7]} 32... Kf8 {[%clk 0:00:13.3]}
33. Kf4 {[%clk 0:00:26.4]} 33... Ke8 {[%clk 0:00:11]} 34. Kg5 {[%clk 0:00:25.8]}
34... Qa4 {[%clk 0:00:08.4]} 35. Kxh5 {[%clk 0:00:10.7]} 35... Qxd4 {[%clk
0:00:06.9]} 36. Qe1 {[%clk 0:00:08.6]} 36... Qxf2 {[%clk 0:00:06.7]} 37. Qd1
{[%clk 0:00:08.4]} 37... Qf5# {[%clk 0:00:06.3]} 0-1

[Event "*** SCC Grand Prix: Titled Tuesday Blitz"]
[Site "Chess.com"]
[Date "2020.06.02"]
[Round "2"]
[White "Justinz"]
[Black "H16"]
[Result "1-0"]
[WhiteElo "2306"]
[BlackElo "2518"]
[TimeControl "180+1"]
[EndTime "10:17:39 PDT"]
[Termination "Justinz won on time"]

1. e4 {[%clk 0:03:00.9]} 1... c5 {[%clk 0:02:58.2]} 2. Nf3 {[%clk 0:03:00]} 2...
d6 {[%clk 0:02:58.7]} 3. d4 {[%clk 0:02:59.7]} 3... cxd4 {[%clk 0:02:59.6]} 4.
Nxd4 {[%clk 0:02:59.9]} 4... Nf6 {[%clk 0:03:00.5]} 5. Nc3 {[%clk 0:02:57.5]}
5... a6 {[%clk 0:03:00.8]} 6. Rg1 {[%clk 0:02:56.4]} 6... e5 {[%clk 0:02:56.1]}
7. Nb3 {[%clk 0:02:56.8]} 7... Be6 {[%clk 0:02:46.2]} 8. g4 {[%clk 0:02:54.2]}
8... d5 {[%clk 0:02:46]} 9. exd5 {[%clk 0:02:55.1]} 9... Nxd5 {[%clk 0:02:46.2]}
10. Nxd5 {[%clk 0:02:54.3]} 10... Qxd5 {[%clk 0:02:37.7]} 11. Be3 {[%clk
0:02:53.2]} 11... Nc6 {[%clk 0:02:32.6]} 12. Bg2 {[%clk 0:02:41.1]} 12... Qxd1+
{[%clk 0:02:26.3]} 13. Rxd1 {[%clk 0:02:42]} 13... Rd8 {[%clk 0:02:19.9]} 14.
Rxd8+ {[%clk 0:02:33]} 14... Kxd8 {[%clk 0:02:20.8]} 15. Bb6+ {[%clk 0:02:32.1]}
15... Kc8 {[%clk 0:02:18.7]} 16. Be4 {[%clk 0:02:31]} 16... Be7 {[%clk
0:02:03.8]} 17. Ke2 {[%clk 0:02:27.5]} 17... Bd8 {[%clk 0:01:58]} 18. Be3 {[%clk
0:02:26.4]} 18... Be7 {[%clk 0:01:54]} 19. c3 {[%clk 0:02:22.2]} 19... Rd8
{[%clk 0:01:50]} 20. f3 {[%clk 0:02:19.6]} 20... Bc4+ {[%clk 0:01:33.6]} 21. Kf2
{[%clk 0:01:59.7]} 21... h6 {[%clk 0:01:30.3]} 22. Rh1 {[%clk 0:01:28]} 22...
Bh4+ {[%clk 0:01:21.9]} 23. Kg2 {[%clk 0:01:26.6]} 23... Bg5 {[%clk 0:01:21.4]}
24. Kf2 {[%clk 0:01:21.9]} 24... Bh4+ {[%clk 0:01:04.1]} 25. Kg2 {[%clk
0:01:21]} 25... Kc7 {[%clk 0:00:44.4]} 26. Rc1 {[%clk 0:00:54.9]} 26... Bg5
{[%clk 0:00:30.9]} 27. Kf2 {[%clk 0:00:54.3]} 27... g6 {[%clk 0:00:21.2]} 28.
Rh1 {[%clk 0:00:51.6]} 28... Bh4+ {[%clk 0:00:17.5]} 29. Kg2 {[%clk 0:00:50.9]}
29... Bg5 {[%clk 0:00:17.6]} 30. Kf2 {[%clk 0:00:46.8]} 30... Bd5 {[%clk
0:00:13.3]} 31. h4 {[%clk 0:00:44.1]} 31... Bxe3+ {[%clk 0:00:13]} 32. Kxe3
{[%clk 0:00:44.2]} 32... Bxe4 {[%clk 0:00:13.9]} 33. fxe4 {[%clk 0:00:43.3]}
33... b6 {[%clk 0:00:08.5]} 34. Rf1 {[%clk 0:00:43]} 34... Rd7 {[%clk
0:00:08.5]} 35. Nd2 {[%clk 0:00:42.3]} 35... Na5 {[%clk 0:00:07.8]} 36. b3
{[%clk 0:00:40.7]} 36... b5 {[%clk 0:00:06.8]} 37. Rf6 {[%clk 0:00:39.6]} 37...
Nc6 {[%clk 0:00:05.2]} 38. h5 {[%clk 0:00:39.7]} 38... gxh5 {[%clk 0:00:04.3]}
39. gxh5 {[%clk 0:00:39.2]} 39... Rd6 {[%clk 0:00:02.8]} 40. Rxf7+ {[%clk
0:00:39.2]} 40... Kb6 {[%clk 0:00:03.7]} 41. Nf3 {[%clk 0:00:38.8]} 41... a5
{[%clk 0:00:02.6]} 42. Rg7 {[%clk 0:00:37.6]} 42... a4 {[%clk 0:00:02.6]} 43.
Rg6 {[%clk 0:00:37]} 43... Kc7 {[%clk 0:00:02.3]} 44. Nh4 {[%clk 0:00:35]} 44...
Ne7 {[%clk 0:00:01.3]} 45. Rg7 {[%clk 0:00:34.3]} 1-0